bitfinex/quotes_SOLUSD_20250904
["timestamp","ask_amount","ask_price","bid_price","bid_amount"]
[1757029544298,0.03,203.54,203.51,4.03824945]
[1757029544474,0.03,203.54,203.51,83.85824945]
[1757029544675,26.03,203.54,203.51,83.85824945]
[1757029544971,0.03,203.54,203.51,83.85824945]
[1757029546392,0.03,203.54,203.51,79.94]
[1757029546595,29.91824945,203.53,203.51,79.94]
[1757029547482,26.03,203.54,203.51,79.94]
[1757029547880,26.0,203.53,203.51,79.94]
[1757029548196,26.0,203.53,203.51,0.12]
[1757029548497,0.03,203.54,203.51,0.12]
[1757029550391,26.03,203.54,203.52,3.91824945]
[1757029550595,26.03,203.54,203.53,3.91824945]
[1757029550596,0.03,203.54,203.53,3.91824945]
[1757029551096,0.03,203.54,203.51,117.9]
[1757029551097,0.03,203.54,203.52,3.91824945]
[1757029551993,0.03,203.54,203.53,3.91824945]
[1757029552203,0.03,203.54,203.53,41.87824945]
[1757029554011,0.03,203.54,203.53,121.69824945]
[1757029555917,0.03,203.54,203.53,83.73824945]
[1757029556081,0.03,203.54,203.53,79.82]
[1757029556788,0.03,203.54,203.53,83.73824945]
[1757029557298,0.03,203.54,203.53,117.8]
[1757029559313,0.03,203.54,203.53,121.71824945]
[1757029559478,0.03,203.54,203.53,117.8]
[1757029561299,0.03,203.54,203.53,121.71824945]
[1757029563196,0.03,203.54,203.53,117.8]
[1757029569489,0.03,203.54,203.53,121.71824945]
[1757029570010,0.03,203.54,203.53,117.8]
[1757029571309,0.03,203.54,203.53,79.82]
[1757029571512,0.03,203.54,203.53,117.74]
[1757029571709,29.94824945,203.54,203.53,117.74]
[1757029571896,29.94824945,203.54,203.53,37.92]
[1757029572297,29.94824945,203.54,203.52,37.92]
[1757029572499,34.86142715,203.54,203.52,37.92]
[1757029573610,30.9431777,203.54,203.52,37.92]
[1757029573813,34.86142715,203.54,203.52,37.92]
[1757029574005,30.9431777,203.54,203.52,37.92]
[1757029574210,26.03,203.54,203.52,37.92]
[1757029574397,0.03,203.54,203.52,121.65824945]
[1757029574596,0.03,203.54,203.53,3.91824945]
[1757029575002,0.03,203.54,203.52,121.65824945]
[1757029576132,0.03,203.54,203.53,3.91824945]
[1757029578023,0.03,203.54,203.53,4.62824945]
[1757029580109,0.03,203.54,203.52,121.65824945]
[1757029580425,0.03,203.54,203.53,0.12]
[1757029580826,0.03,203.54,203.53,79.94]
[1757029586332,0.68,203.54,203.53,79.94]
[1757029586523,26.68,203.54,203.53,0.12]
[1757029586827,30.59824945,203.54,203.53,0.12]
[1757029587528,29.18831088,203.54,203.53,0.12]
[1757029588127,34.10135008,203.54,203.53,0.12]
[1757029597131,33.45135008,203.54,203.53,0.12]
[1757029597437,34.10135008,203.54,203.53,0.12]
[1757029597632,4.9430392,203.54,203.53,0.12]
[1757029598618,26.03,203.54,203.53,0.83]
[1757029599715,26.03,203.54,203.53,0.12]
[1757029601625,30.9430392,203.54,203.53,0.12]
[1757029601828,34.10135008,203.54,203.53,0.12]
[1757029602147,31.5930392,203.54,203.53,0.12]
[1757029602639,30.9430392,203.54,203.53,0.12]
[1757029602833,26.03,203.54,203.53,0.12]
[1757029604145,26.03,203.54,203.53,0.83]
[1757029604438,26.03,203.54,203.53,80.65]
[1757029604940,26.03,203.54,203.53,79.94]
[1757029606746,26.03,203.54,203.53,80.65]
[1757029607445,26.03,203.54,203.53,79.94]
[1757029608644,0.03,203.54,203.53,120.99831088]
[1757029611436,0.03,203.54,203.53,117.82]
[1757029611843,0.03,203.54,203.53,118.49]
[1757029613138,26.03,203.54,203.53,118.49]
[1757029614062,26.03,203.54,203.53,117.82]
[1757029614657,0.03,203.54,203.53,117.82]
[1757029615371,26.03,203.54,203.53,117.82]
[1757029615558,26.03,203.54,203.53,118.49]
[1757029616465,26.03,203.54,203.53,117.82]
[1757029620173,29.24831088,203.54,203.53,79.94]
[1757029620473,40.80577757,203.54,203.53,0.12]
[1757029620660,0.03,203.54,203.53,0.79]
[1757029621154,0.03,203.54,203.53,0.12]
[1757029621356,0.03,203.54,203.53,0.79]
[1757029622877,26.03,203.54,203.53,0.12]
[1757029624147,26.74,203.54,203.53,38.0]
[1757029624346,26.03,203.54,203.53,38.0]
[1757029625159,26.03,203.54,203.53,117.82]
[1757029626573,0.03,203.54,203.53,117.82]
[1757029631070,0.03,203.54,203.53,38.0]
[1757029633660,0.03,203.54,203.53,120.99831088]
[1757029635079,0.03,203.54,203.53,82.44831088]
[1757029635279,0.03,203.54,203.53,117.82]
[1757029638280,0.03,203.54,203.53,118.48]
[1757029638476,0.03,203.54,203.53,125.90159147]
[1757029638777,0.03,203.57,203.56,79.76]
[1757029638976,0.03,203.57,203.56,120.14831088]
[1757029639287,0.03,203.57,203.56,82.92831088]
[1757029639466,0.03,203.57,203.56,120.14831088]
[1757029639667,0.03,203.57,203.56,82.26831088]
[1757029639877,0.03,203.57,203.56,120.14831088]
[1757029640280,0.03,203.57,203.56,120.80831088]
[1757029641380,0.03,203.57,203.56,125.72086737]
[1757029643687,0.03,203.57,203.56,125.70086737]
[1757029643887,0.03,203.57,203.56,139.29646138]
[1757029649368,0.03,203.57,203.56,103.40530444]
[1757029649569,0.03,203.57,203.56,142.67066533]
[1757029650894,0.03,203.59,203.58,97.23926578]
[1757029651099,0.03,203.59,203.58,135.09926578]
[1757029651396,0.03,203.59,203.58,140.67133965]
[1757029651601,0.03,203.59,203.58,142.63989203]
[1757029651997,0.03,203.59,203.58,104.77989203]
[1757029652187,0.03,203.59,203.58,142.63989203]
[1757029652693,0.03,203.59,203.58,100.20622026]
[1757029652892,0.03,203.59,203.58,131.18559401]
[1757029653200,0.72,203.59,203.58,121.50367177]
[1757029653387,0.72,203.59,203.58,117.59]
[1757029653782,0.72,203.59,203.58,79.73]
[1757029654273,0.72,203.59,203.58,117.59]
[1757029654472,0.72,203.59,203.56,79.73]
[1757029654473,4.63367177,203.59,203.56,79.73]
[1757029654670,3.91367177,203.57,203.56,79.73]
[1757029654892,4.60367177,203.57,203.56,79.73]
[1757029655096,0.69,203.57,203.56,79.73]
[1757029656094,9.51598694,203.57,203.54,79.73]
[1757029656300,29.91367177,203.55,203.54,79.73]
[1757029656500,30.60367177,203.55,203.54,79.73]
[1757029656699,30.60367177,203.55,203.53,0.12]
[1757029656907,3.91367177,203.54,203.53,0.12]
[1757029657382,4.60367177,203.54,203.53,0.12]
[1757029657584,9.51671097,203.54,203.53,0.12]
[1757029659102,11.48681465,203.54,203.53,0.12]
[1757029661004,11.48681465,203.54,203.53,0.12]
[1757029662987,11.48681465,203.54,203.53,79.85]
[1757029662988,26.0,203.54,203.53,79.85]
[1757029663297,26.0,203.54,203.53,0.12]
[1757029663603,0.69,203.54,203.53,0.12]
[1757029663898,31.60257165,203.56,203.53,0.12]
[1757029665001,0.69,203.55,203.53,0.12]
[1757029665178,5.60284348,203.55,203.53,0.12]
[1757029670310,4.91284348,203.55,203.53,0.12]
[1757029670905,5.57284348,203.55,203.53,0.12]
[1757029672408,5.57284348,203.55,203.54,3.91367177]
[1757029672601,5.57284348,203.55,203.54,83.64367177]
[1757029674007,4.91284348,203.55,203.54,83.64367177]
[1757029674214,26.0,203.56,203.54,4.57367177]
[1757029674399,26.0,203.57,203.55,3.91367177]
[1757029674719,26.0,203.57,203.56,3.91367177]
[1757029674720,26.66,203.57,203.56,3.91367177]
[1757029675090,26.66,203.57,203.53,0.12]
[1757029675091,26.0,203.56,203.55,3.91367177]
[1757029675290,26.66,203.56,203.53,0.12]
[1757029675504,31.57255649,203.56,203.53,0.12]
[1757029675903,50.26055048,203.56,203.53,0.12]
[1757029676091,46.34687871,203.56,203.53,0.12]
[1757029677303,3.91367177,203.55,203.53,0.12]
[1757029677502,18.68872164,203.55,203.53,0.12]
[1757029677692,0.66,203.54,203.53,0.12]
[1757029678305,15.43577758,203.54,203.53,0.12]
[1757029679217,20.34881678,203.54,203.53,0.12]
[1757029680602,5.5730392,203.54,203.53,0.12]
[1757029680909,9.60671097,203.54,203.53,0.12]
[1757029682516,13.52038274,203.54,203.53,0.12]
[1757029682715,9.60671097,203.54,203.53,0.12]
[1757029683398,5.5730392,203.54,203.53,0.12]
[1757029685319,0.66,203.54,203.53,0.12]
[1757029685499,26.66,203.54,203.53,0.12]
[1757029685702,31.5730392,203.54,203.53,0.12]
[1757029686033,26.0,203.54,203.53,0.12]
[1757029686212,26.0,203.54,203.53,4.03367177]
[1757029686413,26.0,203.54,203.53,0.12]
[1757029686717,26.0,203.54,203.51,0.12]
[1757029686718,26.66,203.54,203.51,0.12]
[1757029686921,26.66,203.54,203.5,1e-08]
[1757029686922,38.52,203.53,203.5,1e-08]
[1757029687092,13.59559401,203.52,203.5,1e-08]
[1757029687406,7.82734354,203.51,203.49,1e-08]
[1757029687590,55.53297196,203.5,203.49,1e-08]
[1757029687794,51.61930019,203.5,203.49,1e-08]
[1757029688023,52.27930019,203.5,203.48,1e-08]
[1757029688207,7.52529528,203.49,203.48,1e-08]
[1757029688616,8.18529528,203.49,203.48,1e-08]
[1757029689001,26.0,203.46,203.44,1e-08]
[1757029689316,68.79162351,203.46,203.44,1e-08]
[1757029689510,91.87586029,203.46,203.45,1e-08]
[1757029689817,100.05672886,203.46,203.45,1e-08]
[1757029690406,26.0,203.42,203.33,0.1]
[1757029690596,29.91367177,203.38,203.33,0.1]
[1757029690796,26.0,203.36,203.34,0.66]
[1757029691001,26.0,203.36,203.35,0.66]
[1757029691391,39.59559401,203.36,203.35,0.66]
[1757029693222,26.0,203.36,203.35,0.66]
[1757029693726,3.91367177,203.36,203.35,0.66]
[1757029694217,29.91367177,203.36,203.33,0.1]
[1757029694420,0.66,203.35,203.33,0.1]
[1757029694616,38.74482099,203.36,203.33,0.1]
[1757029694798,0.66,203.34,203.33,0.1]
[1757029696617,3.91367177,203.35,203.33,0.1]
[1757029696806,4.9176297,203.35,203.33,0.1]
[1757029696995,5.5776297,203.35,203.33,0.1]
[1757029697197,4.57367177,203.34,203.33,0.1]
[1757029698122,9.49154331,203.34,203.33,0.1]
[1757029698711,13.40521508,203.34,203.33,0.1]
[1757029699114,9.49154331,203.34,203.33,0.1]
[1757029699319,13.40521508,203.34,203.33,0.1]
[1757029702317,3.91367177,203.34,203.33,0.1]
[1757029704015,34.83154331,203.34,203.33,0.1]
[1757029706020,29.91367177,203.34,203.33,0.1]
[1757029706330,34.83154331,203.34,203.33,0.1]
[1757029707826,52.58521508,203.34,203.33,1e-08]
[1757029708015,56.16529903,203.34,203.33,1e-08]
[1757029708216,59.7446218,203.34,203.33,1e-08]
[1757029708608,59.74284013,203.34,203.33,1e-08]
[1757029708809,56.16479774,203.34,203.33,1e-08]
[1757029709326,59.74256417,203.34,203.33,1e-08]
[1757029709523,58.34277698,203.34,203.33,1e-08]
[1757029711329,54.76501055,203.34,203.33,1e-08]
[1757029711718,58.34226869,203.34,203.33,1e-08]
[1757029713438,55.82838411,203.34,203.32,1e-08]
[1757029713615,14.58883879,203.33,203.32,1e-08]
[1757029714115,15.24883879,203.33,203.32,1e-08]
[1757029716326,12.73495421,203.33,203.32,1e-08]
[1757029716945,15.24883879,203.33,203.32,1e-08]
[1757029718619,17.22127401,203.33,203.32,1e-08]
[1757029718822,14.04738943,203.33,203.32,0.67000001]
[1757029719019,49.04443321,203.33,203.32,1e-08]
[1757029719434,52.62898918,203.33,203.32,1e-08]
[1757029720213,56.21550763,203.33,203.32,1e-08]
[1757029720830,52.62997042,203.33,203.32,1e-08]
[1757029721037,56.21586253,203.33,203.32,1e-08]
[1757029725743,56.87586253,203.33,203.32,1e-08]
[1757029726834,56.8857665,203.33,203.32,1e-08]
[1757029727029,56.2257665,203.33,203.32,1e-08]
[1757029727537,53.71188192,203.33,203.32,1e-08]
[1757029727851,56.2257665,203.33,203.32,1e-08]
[1757029728036,53.71188192,203.33,203.32,1e-08]
[1757029728239,56.2257665,203.33,203.32,1e-08]
[1757029728947,14.07188192,203.33,203.32,0.71000001]
[1757029729154,80.09333128,203.33,203.32,1e-08]
[1757029729445,80.09333128,203.33,203.32,0.71000001]
[1757029729446,38.10627645,203.33,203.32,0.71000001]
[1757029729634,7.18816304,203.33,203.32,0.71000001]
[1757029729950,3.60227093,203.33,203.32,0.71000001]
[1757029730249,4.91809957,203.34,203.32,0.71000001]
[1757029730840,46.03296532,203.38,203.32,0.71000001]
[1757029731023,2.51388458,203.36,203.32,0.71000001]
[1757029732338,4.9176297,203.35,203.32,0.71000001]
[1757029733252,4.9176297,203.35,203.32,3.22388459]
[1757029733454,4.9176297,203.35,203.33,0.71]
[1757029734846,4.94738788,203.36,203.34,0.71]
[1757029735056,26.0,203.34,203.32,1e-08]
[1757029735266,69.09388458,203.33,203.32,1e-08]
[1757029735443,67.25,203.33,203.32,1e-08]
[1757029735640,69.76388458,203.33,203.32,1e-08]
[1757029736446,74.68199799,203.33,203.32,1e-08]
[1757029738732,72.16811341,203.33,203.32,1e-08]
[1757029739131,74.68199799,203.33,203.32,1e-08]
[1757029740828,71.49811341,203.33,203.32,1e-08]
[1757029741453,30.91811341,203.33,203.32,1e-08]
[1757029741656,33.43199799,203.33,203.32,0.71000001]
[1757029742967,33.43199799,203.33,203.32,1e-08]
[1757029743155,34.10199799,203.33,203.32,1e-08]
[1757029743349,33.43199799,203.33,203.32,1e-08]
[1757029743548,33.43199799,203.33,203.32,0.71000001]
[1757029744058,33.43199799,203.33,203.32,1e-08]
[1757029745032,30.91811341,203.33,203.32,1e-08]
[1757029749759,31.58811341,203.33,203.32,1e-08]
[1757029749957,30.91811341,203.33,203.32,1e-08]
[1757029753570,31.58811341,203.33,203.32,1e-08]
[1757029754262,33.56025688,203.33,203.32,1e-08]
[1757029756568,31.58811341,203.33,203.32,1e-08]
[1757029757960,31.63811341,203.33,203.32,1e-08]
[1757029759545,30.91811341,203.33,203.32,1e-08]
[1757029761177,48.27199799,203.33,203.32,1e-08]
[1757029761579,50.24443321,203.33,203.32,1e-08]
[1757029761871,50.24443321,203.33,203.3,0.12]
[1757029761872,26.0,203.31,203.3,1e-08]
[1757029762045,72.52740521,203.31,203.29,1e-08]
[1757029762252,4.35352063,203.3,203.29,1e-08]
[1757029762458,6.86740521,203.3,203.29,1e-08]
[1757029763051,10.66660831,203.3,203.29,1e-08]
[1757029766869,26.0,203.29,203.23,2.51388458]
[1757029767069,40.24,203.28,203.24,0.71]
[1757029767272,40.24,203.28,203.25,0.71]
[1757029767273,26.0,203.26,203.25,0.71]
[1757029767463,14.79472321,203.28,203.26,0.71]
[1757029767667,66.26,203.29,203.27,0.71]
[1757029767871,66.26,203.29,203.24,2.51388458]
[1757029768070,4.9193231,203.28,203.26,0.12]
[1757029768279,4.9193231,203.28,203.26,0.83]
[1757029768658,4.9193231,203.28,203.26,0.12]
[1757029769277,5.6393231,203.28,203.26,0.12]
[1757029769574,26.0,203.25,203.24,0.12]
[1757029769955,66.2,203.27,203.24,0.83]
[1757029770168,4.91980714,203.26,203.25,0.71]
[1757029771669,30.91980714,203.26,203.25,0.71]
[1757029772056,30.91980714,203.26,203.24,0.12]
[1757029772259,30.91980714,203.26,203.25,0.71]
[1757029773994,30.91980714,203.26,203.24,0.12]
[1757029774161,30.91980714,203.26,203.24,0.83]
[1757029774659,30.91980714,203.26,203.17,18.51748209]
[1757029774660,26.0,203.22,203.17,0.71]
[1757029774866,67.16,203.22,203.17,4.63869689]
[1757029775071,3.62606181,203.21,203.17,3.92869689]
[1757029775273,3.62606181,203.21,203.18,0.71]
[1757029775480,3.62606181,203.2,203.19,0.71]
[1757029775685,3.62606181,203.2,203.18,3.92869689]
[1757029775882,3.62606181,203.19,203.18,3.92869689]
[1757029776068,3.62606181,203.19,203.13,13.59559401]
[1757029776069,3.62606181,203.19,203.12,13.69559401]
[1757029776269,81.47559401,203.22,203.17,3.92869689]
[1757029776472,3.62282785,203.21,203.18,0.71]
[1757029776785,8.54423577,203.2,203.18,0.71]
[1757029776992,3.62282785,203.19,203.18,0.71]
[1757029777292,3.62282785,203.19,203.17,3.92869689]
[1757029777481,4.92140792,203.2,203.18,0.71]
[1757029778363,4.92140792,203.2,203.17,0.71]
[1757029778579,4.92140792,203.2,203.18,0.71]
[1757029778875,4.92101766,203.21,203.18,0.71]
[1757029779074,3.62038753,203.2,203.18,0.71]
[1757029779382,5.64101766,203.21,203.16,4.63869689]
[1757029779583,4.33951414,203.2,203.16,4.63869689]
[1757029779885,0.72,203.2,203.16,4.63869689]
[1757029780278,0.72,203.2,203.17,0.71]
[1757029780466,4.92101766,203.21,203.18,0.71]
[1757029780668,3.61889173,203.2,203.18,0.71]
[1757029780875,4.92101766,203.21,203.18,0.71]
[1757029781068,4.92101766,203.21,203.12,80.1]
[1757029781069,3.61896138,203.2,203.17,3.92869689]
[1757029781275,4.92101766,203.21,203.18,0.71]
[1757029781587,3.61804002,203.2,203.18,0.71]
[1757029781774,5.64101766,203.21,203.18,0.71]
[1757029782085,3.61803467,203.2,203.18,0.71]
[1757029782291,4.92101766,203.21,203.18,0.71]
[1757029782475,3.61719621,203.2,203.18,0.71]
[1757029782672,80.75559401,203.22,203.19,0.71]
[1757029782877,3.61630581,203.21,203.17,0.71]
[1757029783076,3.61619067,203.2,203.18,0.71]
[1757029783388,86.39637467,203.22,203.18,0.71]
[1757029783686,3.61479767,203.21,203.18,0.71]
[1757029783880,86.39637467,203.22,203.18,0.71]
[1757029784080,4.3347966,203.21,203.18,0.71]
[1757029784282,4.92125984,203.2,203.18,0.71]
[1757029785184,5.64125984,203.2,203.16,4.63869689]
[1757029785363,4.92125984,203.2,203.17,0.71]
[1757029785566,9.94444589,203.2,203.17,0.71]
[1757029786388,9.94444589,203.2,203.18,0.12]
[1757029788985,10.63444589,203.2,203.18,0.12]
[1757029790274,9.94444589,203.2,203.18,0.12]
[1757029790469,0.69,203.19,203.18,0.12]
[1757029790888,5.02318605,203.2,203.18,0.82]
[1757029791064,4.92101766,203.21,203.18,4.74869689]
[1757029791388,5.61101766,203.21,203.18,4.04869689]
[1757029791767,5.61101766,203.21,203.18,0.12]
[1757029791967,4.04869689,203.23,203.19,0.7]
[1757029792192,4.92030803,203.24,203.19,0.7]
[1757029792482,4.92030803,203.24,203.22,3.92869689]
[1757029792689,0.72,203.26,203.23,3.92869689]
[1757029792988,0.03,203.26,203.23,0.7]
[1757029793173,5.63990058,203.26,203.23,4.62869689]
[1757029793663,5.63990058,203.26,203.23,0.7]
[1757029794064,5.63990058,203.26,203.21,0.7]
[1757029794268,5.63990058,203.26,203.22,4.62869689]
[1757029795891,5.63990058,203.26,203.22,84.62869689]
[1757029796291,5.63990058,203.26,203.23,3.92869689]
[1757029796692,5.63990058,203.26,203.23,4.62869689]
[1757029796902,4.94990058,203.26,203.24,4.62869689]
[1757029797196,0.03,203.26,203.25,4.62869689]
[1757029797800,0.03,203.26,203.25,0.7]
[1757029797974,0.03,203.26,203.25,4.62869689]
[1757029798878,0.03,203.26,203.25,0.7]
[1757029799083,0.03,203.26,203.25,4.62869689]
[1757029799269,0.03,203.26,203.25,0.7]
[1757029799473,0.03,203.26,203.25,4.62869689]
[1757029801001,0.03,203.26,203.25,18.2242909]
[1757029802403,0.03,203.26,203.25,80.0]
[1757029802404,0.72,203.26,203.25,80.0]
[1757029802700,0.03,203.26,203.25,80.0]
[1757029803594,0.03,203.26,203.25,83.92869689]
[1757029804976,0.03,203.26,203.25,84.62869689]
[1757029806113,0.03,203.26,203.25,4.62869689]
[1757029807090,0.03,203.26,203.25,18.2242909]
[1757029808000,0.03,203.26,203.25,59.0442909]
[1757029808582,0.03,203.26,203.25,63.9643401]
[1757029810606,0.03,203.26,203.25,18.2242909]
[1757029810786,0.03,203.26,203.25,59.0042909]
[1757029810979,0.03,203.26,203.25,58.9642909]
[1757029812202,0.03,203.26,203.25,138.9642909]
[1757029812709,0.03,203.26,203.25,98.2242909]
[1757029813000,0.03,203.26,203.25,97.5242909]
[1757029813204,0.03,203.26,203.25,138.2242909]
[1757029813410,0.03,203.26,203.25,97.5242909]
[1757029813709,0.03,203.26,203.25,134.99559401]
[1757029814006,0.03,203.26,203.25,138.9242909]
[1757029814888,0.03,203.26,203.25,98.2242909]
[1757029815202,0.03,203.26,203.25,138.9042909]
[1757029815405,0.03,203.26,203.25,138.8642909]
[1757029818000,0.03,203.26,203.25,271.4642909]
[1757029818406,0.03,203.26,203.25,80.0]
[1757029818591,0.03,203.26,203.25,124.48869689]
[1757029819607,0.03,203.26,203.25,83.92869689]
[1757029819803,0.69,203.26,203.25,83.92869689]
[1757029819983,0.69,203.26,203.25,80.0]
[1757029820183,0.69,203.26,203.25,83.92869689]
[1757029820580,0.69,203.26,203.24,0.12]
[1757029820796,0.69,203.26,203.25,3.92869689]
[1757029821211,0.69,203.26,203.24,0.12]
[1757029821811,4.9200492,203.25,203.24,0.12]
[1757029821990,5.5800492,203.25,203.24,0.12]
[1757029824219,0.03,203.26,203.24,0.12]
[1757029824220,0.03,203.26,203.24,4.04869689]
[1757029824404,0.03,203.26,203.25,3.92869689]
[1757029829204,0.03,203.26,203.25,4.62869689]
[1757029829622,0.03,203.26,203.25,84.62869689]
[1757029829989,0.03,203.26,203.25,124.98869689]
[1757029830683,0.03,203.26,203.25,138.5842909]
[1757029831514,0.03,203.26,203.25,137.16844185]
[1757029831814,0.03,203.26,203.25,142.08849105]
[1757029832908,0.03,203.26,203.25,82.51284784]
[1757029833090,0.69,203.26,203.25,82.51284784]
[1757029833489,0.03,203.26,203.25,82.51284784]
[1757029835502,0.69,203.26,203.25,80.0]
[1757029835821,0.69,203.26,203.25,82.51284784]
[1757029836722,0.03,203.26,203.25,82.51284784]
[1757029838725,5.57956511,203.27,203.26,79.97]
[1757029842932,5.60956511,203.27,203.26,79.97]
[1757029849343,5.60956511,203.27,203.26,54.88969461]
[1757029849344,8.12241295,203.27,203.26,54.88969461]
[1757029849636,8.12241295,203.27,203.21,132.72]
[1757029849637,26.0,203.25,203.21,0.12]
[1757029849832,2.51284784,203.23,203.21,0.12]
[1757029850034,29.19284784,203.24,203.21,0.12]
[1757029850332,0.68,203.22,203.21,0.12]
[1757029851143,5.60077551,203.22,203.21,0.12]
[1757029852435,8.11362335,203.22,203.21,0.12]
[1757029856642,10.08703167,203.22,203.21,0.12]
[1757029858661,26.0,203.2,203.19,0.12]
[1757029858825,68.35284784,203.2,203.19,0.12]
[1757029859139,69.03284784,203.2,203.19,0.12]
[1757029859332,66.52,203.2,203.19,0.12]
[1757029860244,71.44125984,203.2,203.19,0.12]
[1757029860427,86.24328278,203.2,203.19,0.12]
[1757029863542,71.44125984,203.2,203.19,0.12]
[1757029863840,73.95410768,203.2,203.19,0.12]
[1757029864229,73.15410768,203.2,203.19,0.12]
[1757029864547,70.64125984,203.2,203.19,0.12]
[1757029864725,71.32125984,203.2,203.19,0.12]
[1757029866645,71.32125984,203.2,203.18,0.12]
[1757029867339,71.32125984,203.2,203.18,1e-08]
[1757029867533,2.51284784,203.19,203.18,1e-08]
[1757029867719,71.32125984,203.2,203.18,1e-08]
[1757029867927,40.66,203.19,203.18,1e-08]
[1757029868751,45.58150204,203.19,203.18,1e-08]
[1757029870634,48.09434988,203.19,203.18,1e-08]
[1757029870953,26.0,203.14,202.95,0.04567215]
[1757029871254,2.51284784,203.01,202.95,0.04567215]
[1757029871444,26.0,203.06,202.95,0.04567215]
[1757029871445,2.51284784,202.99,202.96,0.7]
[1757029871949,2.51284784,203.0,202.96,0.7]
[1757029872129,2.51284784,203.0,202.98,0.8]
[1757029872130,1.97525987,202.99,202.98,0.8]
[1757029873033,44.84587545,203.01,202.98,3.31284784]
[1757029873235,2.51284784,203.0,202.99,0.7]
[1757029873458,2.51284784,203.0,202.98,0.1]
[1757029873756,2.51284784,203.0,202.99,2.51284784]
[1757029874053,2.51284784,203.0,202.99,3.21284784]
[1757029874244,2.51284784,203.0,202.98,0.1]
[1757029874436,2.51284784,203.0,202.98,0.8]
[1757029874944,44.90635105,202.99,202.98,0.8]
[1757029875150,7.43896784,203.0,202.98,3.31284784]
[1757029875329,47.39896784,203.0,202.98,0.1]
[1757029875534,47.67896784,203.0,202.98,0.8]
[1757029876041,47.67896784,203.0,202.99,0.7]
[1757029876042,7.43896784,203.0,202.99,0.7]
[1757029876255,47.73896784,203.0,202.99,0.7]
[1757029876552,7.43896784,203.0,202.99,0.7]
[1757029876753,47.73896784,203.0,202.99,0.7]
[1757029876966,7.43896784,203.0,202.99,0.7]
[1757029877268,7.43896784,203.0,202.99,80.7]
[1757029877269,47.71896784,203.0,202.99,80.7]
[1757029877560,7.43896784,203.0,202.99,0.82]
[1757029877754,4.92489534,203.05,202.99,3.33284784]
[1757029877955,4.92489534,203.05,203.03,2.51284784]
[1757029878264,40.26,203.04,203.03,0.69]
[1757029878457,42.77284784,203.04,203.03,3.20284784]
[1757029878631,40.26,203.04,203.03,3.20284784]
[1757029878835,4.92489534,203.05,203.03,0.69]
[1757029879062,48.38774318,203.05,203.01,0.69]
[1757029879251,48.38774318,203.05,203.02,3.20284784]
[1757029880459,48.38774318,203.05,203.02,0.69]
[1757029880963,48.38774318,203.05,203.03,2.51284784]
[1757029881259,48.38774318,203.05,203.03,3.20284784]
[1757029881469,48.38774318,203.05,202.99,0.12]
[1757029881639,48.38774318,203.05,203.02,0.69]
[1757029881842,48.38774318,203.05,203.04,2.51284784]
[1757029882040,48.38774318,203.05,203.04,3.20284784]
[1757029882245,48.38774318,203.05,203.04,2.51284784]
[1757029882745,48.38774318,203.05,203.03,2.51284784]
[1757029882941,48.38774318,203.05,203.03,3.20284784]
[1757029883445,48.38774318,203.05,203.04,2.51284784]
[1757029885340,48.38774318,203.05,203.03,2.51284784]
[1757029885541,49.06774318,203.05,203.01,80.69]
[1757029885756,49.06774318,203.05,203.03,2.51284784]
[1757029886066,0.68,203.04,203.03,2.51284784]